bitfinex-derivatives/quotes_BTCF0:USTF0_20230701
["timestamp","ask_amount","ask_price","bid_price","bid_amount"]
[1688174517771,0.582809,30444.0,30443.0,0.02020368]
[1688174518769,0.582809,30444.0,30443.0,0.02378392]
[1688174519163,0.582809,30444.0,30443.0,0.00407292]
[1688174519362,0.582809,30444.0,30443.0,0.02378392]
[1688174520664,0.56466045,30444.0,30443.0,0.02378392]
[1688174520867,0.582809,30444.0,30443.0,0.02378392]
[1688174521268,0.56466045,30444.0,30443.0,0.02378392]
[1688174521666,0.5261,30444.0,30443.0,0.04908402]
[1688174521865,0.545008,30448.0,30443.0,0.57088402]
[1688174522066,0.545008,30448.0,30445.0,0.3608]
[1688174522269,0.545008,30448.0,30446.0,0.019709]
[1688174522880,0.560198,30447.0,30446.0,0.019709]
[1688174523072,0.940707,30447.0,30446.0,0.019709]
[1688174523570,0.940707,30447.0,30443.0,0.05962168]
[1688174523768,0.940707,30447.0,30443.0,0.00049268]
[1688174523769,0.8831,30444.0,30443.0,0.00049268]
[1688174523962,0.902811,30444.0,30443.0,0.00049268]
[1688174524162,0.92166045,30444.0,30443.0,0.02020368]
[1688174524574,0.939809,30444.0,30443.0,0.02020368]
[1688174525574,0.939809,30444.0,30443.0,0.02297214]
[1688174525972,0.939809,30444.0,30443.0,0.02396115]
[1688174526367,0.380511,30444.0,30443.0,0.02396115]
[1688174526875,0.380511,30444.0,30443.0,0.0428106]
[1688174527168,0.059133,30446.0,30443.0,0.58714029]
[1688174527371,0.059133,30447.0,30445.0,0.5218]
[1688174527669,0.059133,30447.0,30446.0,0.019709]
[1688174527865,0.059133,30447.0,30446.0,0.05678814]
[1688174528066,0.059133,30447.0,30446.0,0.03855845]
[1688174528676,0.01971,30448.0,30446.0,0.03855845]
[1688174528975,0.01971,30448.0,30447.0,0.03855845]
[1688174529162,0.03855945,30448.0,30447.0,0.019709]
[1688174530776,0.01971,30448.0,30447.0,0.019709]
[1688174531171,0.01971,30448.0,30447.0,0.05678814]
[1688174531375,0.00049157,30449.0,30447.0,0.58288814]
[1688174531576,0.02019857,30449.0,30448.0,0.5261]
[1688174531777,0.02019857,30449.0,30448.0,0.58288714]
[1688174533073,0.00049157,30449.0,30448.0,0.58288714]
[1688174533675,0.02019857,30449.0,30448.0,0.58288714]
[1688174535593,0.02019857,30449.0,30448.0,0.56465745]
[1688174536087,0.02019857,30449.0,30448.0,0.58288714]
[1688174536486,0.02019857,30449.0,30448.0,0.56465745]
[1688174536688,0.02019857,30449.0,30448.0,0.58288714]
[1688174538892,0.02019857,30449.0,30448.0,0.56465745]
[1688174539085,0.02019857,30449.0,30448.0,0.58288714]
[1688174539284,0.02019857,30449.0,30448.0,0.56465745]
[1688174539489,0.02019857,30449.0,30448.0,0.545808]
[1688174540382,0.02019857,30449.0,30448.0,0.58288714]
[1688174540892,0.02019857,30449.0,30448.0,0.40818714]
[1688174541290,0.02019857,30449.0,30448.0,0.019708]
[1688174541291,0.41099657,30449.0,30448.0,0.019708]
[1688174541477,0.45855484,30449.0,30446.0,0.059125]
[1688174541785,0.92902752,30447.0,30446.0,0.059125]
[1688174542384,0.96602552,30447.0,30446.0,0.059125]
[1688174543679,0.770207,30447.0,30446.0,0.059125]
[1688174543880,0.96608541,30447.0,30446.0,0.059125]
[1688174545480,0.770207,30447.0,30446.0,0.059125]
[1688174548286,0.733209,30447.0,30446.0,0.059125]
[1688174548490,0.7135,30447.0,30446.0,0.059125]
[1688174548791,0.733209,30447.0,30446.0,0.059125]
[1688174549290,0.75135755,30447.0,30446.0,0.059125]
[1688174549489,0.770207,30447.0,30446.0,0.059125]
[1688174550590,0.75205845,30447.0,30446.0,0.059125]
[1688174550988,0.770207,30447.0,30446.0,0.059125]
[1688174551293,0.75205845,30447.0,30446.0,0.059125]
[1688174551689,0.770207,30447.0,30446.0,0.059125]
[1688174552189,0.75205845,30447.0,30446.0,0.059125]
[1688174552901,0.75205845,30447.0,30446.0,0.07735469]
[1688174553294,0.75205845,30447.0,30446.0,0.059125]
[1688174553893,0.770207,30447.0,30446.0,0.059125]
[1688174555097,0.75205845,30447.0,30446.0,0.414025]
[1688174555493,0.19636998,30449.0,30446.0,0.414025]
[1688174555690,0.19636998,30449.0,30448.0,0.3514]
[1688174555893,0.19636998,30449.0,30448.0,0.371108]
[1688174556093,0.21607698,30449.0,30448.0,0.371108]
[1688174557100,0.19636998,30449.0,30448.0,0.371108]
[1688174557391,0.19636998,30449.0,30448.0,0.40818714]
[1688174557799,0.00049157,30449.0,30448.0,0.40818714]
[1688174558295,0.02019857,30449.0,30448.0,0.38995745]
[1688174558902,0.02019857,30449.0,30448.0,0.40818714]
[1688174559503,0.02019857,30449.0,30448.0,0.38995745]
[1688174560002,0.02019857,30449.0,30448.0,0.40818714]
[1688174561505,0.02019857,30449.0,30448.0,0.38995745]
[1688174562399,0.02019857,30449.0,30448.0,0.40818714]
[1688174563099,0.02019857,30449.0,30448.0,0.371108]
[1688174563304,0.73279857,30449.0,30448.0,0.019708]
[1688174563513,0.40899657,30449.0,30446.0,0.411825]
[1688174563715,0.371809,30447.0,30446.0,0.411825]
[1688174564094,0.408807,30447.0,30446.0,0.411825]
[1688174564293,0.769607,30447.0,30445.0,0.019709]
[1688174564499,0.395398,30446.0,30443.0,0.05962168]
[1688174564699,0.73541,30444.0,30443.0,0.00049268]
[1688174565099,0.772408,30444.0,30443.0,0.02020368]
[1688174565301,1.17730799,30444.0,30443.0,0.00049268]
[1688174565524,1.17730799,30444.0,30442.0,6e-05]
[1688174565695,0.026312,30442.0,30436.0,0.019715]
[1688174565896,0.373715,30437.0,30436.0,0.019715]
[1688174566098,0.373715,30437.0,30435.0,0.059149]
[1688174566302,0.373715,30437.0,30433.0,0.08532969]
[1688174566303,0.42901051,30436.0,30433.0,0.08532969]
[1688174566506,0.374617,30434.0,30433.0,0.06561269]
[1688174566703,0.374617,30434.0,30432.0,0.08582353]
[1688174566704,0.411615,30434.0,30432.0,0.08582353]
[1688174567004,0.373718,30433.0,30432.0,0.02021084]
[1688174567205,0.410716,30433.0,30432.0,0.02021084]
[1688174567510,0.39256745,30433.0,30432.0,0.02021084]
[1688174567708,0.3549,30434.0,30432.0,0.37371084]
[1688174567893,0.3549,30434.0,30433.0,0.7157]
[1688174568203,0.3549,30434.0,30433.0,0.79927655]
[1688174568395,0.3549,30434.0,30433.0,0.75426745]
[1688174568596,0.391898,30434.0,30433.0,0.735418]
[1688174568998,0.3549,30434.0,30433.0,0.735418]
[1688174569203,0.3549,30434.0,30433.0,0.8278101]
[1688174569496,0.3549,30434.0,30433.0,0.7804271]
[1688174569497,0.3055917,30434.0,30433.0,0.7804271]
[1688174569696,0.3055917,30434.0,30433.0,0.86480921]
[1688174570108,0.3538,30437.0,30433.0,0.89629558]
[1688174570301,0.3538,30437.0,30436.0,0.7153]
[1688174570606,0.00049284,30438.0,30436.0,0.735416]
[1688174570813,0.00049284,30438.0,30437.0,0.41169414]
[1688174571806,0.00049284,30438.0,30437.0,0.374615]
[1688174572204,0.00049284,30438.0,30437.0,0.41169414]
[1688174572405,0.00049284,30438.0,30437.0,0.77249414]
[1688174573004,0.00049284,30438.0,30437.0,0.83802605]
[1688174573302,0.00049284,30438.0,30437.0,0.77249414]
[1688174575007,0.3246,30443.0,30438.0,0.3538]
[1688174575208,0.3538,30444.0,30442.0,0.3529]
[1688174575506,0.37194855,30444.0,30443.0,0.39346045]
[1688174575710,0.37194855,30444.0,30443.0,0.374611]
[1688174576612,0.3538,30444.0,30443.0,0.374611]
[1688174576807,0.39236045,30444.0,30443.0,0.019711]
[1688174577114,0.410509,30444.0,30443.0,0.019711]
[1688174578498,0.410509,30444.0,30443.0,0.02308168]
[1688174580617,0.410509,30444.0,30443.0,0.38388168]
[1688174581012,0.410509,30444.0,30443.0,0.02308168]
[1688174581215,0.46490451,30444.0,30443.0,0.02308168]
[1688174581408,0.46490451,30444.0,30443.0,0.00337068]
[1688174581713,0.46490451,30444.0,30440.0,0.42042772]
[1688174581714,0.46490451,30444.0,30440.0,0.05962772]
[1688174581909,0.372412,30441.0,30440.0,0.05962772]
[1688174582104,0.372412,30441.0,30440.0,0.00049272]
[1688174582407,0.40941,30441.0,30440.0,0.02020572]
[1688174585409,0.40941,30441.0,30440.0,0.00049272]
[1688174587410,0.41601,30441.0,30440.0,0.00049272]
[1688174587613,0.77681,30441.0,30440.0,0.00049272]
[1688174587808,1.09601,30441.0,30440.0,0.00049272]
[1688174588115,1.059012,30441.0,30434.0,0.44085349]
[1688174588415,0.3538,30435.0,30434.0,0.44085349]
[1688174588621,0.373516,30435.0,30434.0,0.44085349]
[1688174589018,0.39236545,30435.0,30434.0,0.44085349]
[1688174589314,0.373516,30435.0,30434.0,0.44085349]
[1688174589513,0.3538,30435.0,30434.0,0.44085349]
[1688174589916,0.373516,30435.0,30434.0,0.45908318]
[1688174590107,0.410514,30435.0,30434.0,0.414112]
[1688174591014,0.410514,30435.0,30434.0,0.019777]
[1688174591218,0.410514,30435.0,30434.0,6e-05]
[1688174592013,0.410514,30435.0,30434.0,0.00538391]
[1688174592915,0.410514,30435.0,30434.0,0.02510091]
[1688174593122,0.410514,30435.0,30434.0,0.00538391]
[1688174594424,0.410514,30435.0,30434.0,0.02510091]
[1688174595011,0.410514,30435.0,30431.0,0.05964486]
[1688174595012,0.410514,30435.0,30431.0,0.00049286]
[1688174595209,0.372418,30432.0,30431.0,0.00049286]
[1688174595523,0.77731799,30432.0,30424.0,0.3608]
[1688174595713,0.77731799,30432.0,30423.0,0.11363217]
[1688174595714,0.3517,30425.0,30423.0,0.11363217]
[1688174595907,0.391898,30424.0,30423.0,0.049309]
[1688174596116,0.411621,30424.0,30423.0,0.049309]
[1688174596619,0.37374945,30424.0,30423.0,0.049309]
[1688174596823,0.049309,30426.0,30423.0,0.403809]
[1688174596824,0.03857245,30425.0,30423.0,0.403809]
[1688174597014,0.3517,30424.0,30422.0,0.71840788]
[1688174597214,0.354,30423.0,30422.0,0.36700788]
[1688174597525,0.410722,30423.0,30422.0,0.04600788]
[1688174598416,0.410722,30423.0,30422.0,0.02628388]
[1688174598726,0.410722,30423.0,30420.0,0.00049304]
[1688174598929,0.036998,30422.0,30420.0,0.00049304]
[1688174599130,0.019725,30421.0,30420.0,0.00049304]
[1688174599424,0.056723,30421.0,30420.0,0.00049304]
[1688174600614,0.0066,30419.0,30413.0,0.01991435]
[1688174600812,0.3538,30414.0,30413.0,0.01991435]
[1688174601115,0.410528,30414.0,30413.0,0.01991435]
[1688174601317,0.410528,30414.0,30413.0,0.00018335]
[1688174601524,0.3529,30411.0,30408.0,0.02022723]
[1688174601718,0.02420405,30409.0,30408.0,0.0267798]
[1688174601914,0.05053705,30409.0,30408.0,0.00049323]
[1688174602115,0.08753505,30409.0,30403.0,0.48554291]
[1688174602316,0.3549,30404.0,30403.0,0.3608]
[1688174602517,0.374636,30404.0,30401.0,0.11815603]
[1688174602725,0.27264402,30402.0,30401.0,0.019737]
[1688174602925,0.036998,30403.0,30401.0,0.019737]
[1688174602926,0.3549,30403.0,30401.0,0.77939292]
[1688174603226,0.26492095,30406.0,30403.0,0.019737]
[1688174603416,0.09932599,30415.0,30406.0,0.019735]
[1688174603623,0.01973,30414.0,30412.0,0.3535]
[1688174603823,0.354,30413.0,30412.0,0.3535]
[1688174604326,0.37284945,30413.0,30412.0,0.3535]
[1688174604515,0.354,30413.0,30412.0,0.373231]
[1688174604718,0.3518,30415.0,30412.0,0.372431]
[1688174605026,0.3518,30415.0,30414.0,0.37263]
[1688174605323,0.37374945,30415.0,30414.0,0.01973]
[1688174605724,0.3549,30415.0,30414.0,0.01973]
[1688174605924,0.00049322,30416.0,30414.0,0.01973]
[1688174606222,0.00049322,30416.0,30415.0,0.56347914]
[1688174606418,0.00049322,30416.0,30415.0,0.58320814]
[1688174606620,0.801622,30426.0,30417.0,0.526]
[1688174606819,0.5264,30427.0,30425.0,0.3608]
[1688174607021,0.02696654,30426.0,30425.0,0.934106]
[1688174607216,0.01972,30431.0,30425.0,0.934106]
[1688174607426,0.019717,30436.0,30430.0,1.2473]
[1688174607625,0.02020988,30436.0,30434.0,0.3608]
[1688174607832,0.02020988,30436.0,30435.0,0.019716]
[1688174608320,0.56545933,30436.0,30435.0,0.019716]
[1688174608520,0.00049288,30436.0,30435.0,0.55352489]
[1688174608827,0.00049288,30436.0,30435.0,0.02291658]
[1688174609529,0.00049288,30436.0,30435.0,0.05999572]
[1688174609729,0.02607789,30439.0,30435.0,0.59931658]
[1688174609931,0.00022019,30440.0,30439.0,0.019714]
[1688174610137,0.00022019,30440.0,30439.0,0.41759314]
[1688174610319,0.00022019,30440.0,30439.0,0.39936345]
[1688174610521,0.52662019,30440.0,30439.0,0.019714]
[1688174610729,0.56361819,30440.0,30439.0,0.019714]
[1688174610940,0.58333119,30440.0,30439.0,0.019714]
[1688174611731,0.58333119,30440.0,30436.0,0.00049277]
[1688174611937,0.036998,30439.0,30437.0,0.00362546]
[1688174612130,0.546114,30438.0,30437.0,0.00362546]
[1688174612435,0.56496345,30438.0,30437.0,0.00286716]
[1688174612922,0.583112,30438.0,30437.0,0.00286716]
[1688174613234,0.56496345,30438.0,30437.0,0.02258216]
[1688174613422,0.583112,30438.0,30437.0,0.02258216]
[1688174614228,0.56496345,30438.0,30437.0,0.02258216]
[1688174615331,0.583112,30438.0,30437.0,0.00286716]
[1688174615536,0.01884945,30437.0,30436.0,0.00049277]
[1688174615742,0.57209999,30436.0,30429.0,0.01972]
[1688174615941,0.5258,30427.0,30425.0,0.065743]
[1688174616232,0.58312,30426.0,30424.0,0.019723]
[1688174616445,0.5212,30425.0,30424.0,0.019723]
[1688174616623,0.57792,30425.0,30424.0,0.019723]
[1688174616935,0.93872,30425.0,30421.0,0.00049302]
[1688174617129,0.019725,30421.0,30415.0,0.019728]
[1688174617439,0.546128,30417.0,30415.0,0.019728]
[1688174617626,0.583126,30417.0,30415.0,0.019728]
[1688174618326,0.563398,30417.0,30415.0,0.019728]
[1688174618726,0.54524945,30417.0,30415.0,0.39875769]
[1688174618927,0.01884945,30417.0,30415.0,0.380528]
[1688174619225,0.5264,30418.0,30416.0,0.10284014]
[1688174619423,0.5264,30418.0,30416.0,0.065761]
[1688174619827,0.00049315,30420.0,30417.0,0.56287914]
[1688174620037,0.00049315,30420.0,30419.0,0.8872]
[1688174620341,0.00049315,30420.0,30419.0,0.94400514]
[1688174620527,0.546123,30424.0,30421.0,0.00047763]
[1688174620723,0.546123,30424.0,30423.0,0.380524]
[1688174621038,0.41079999,30431.0,30423.0,1.244524]
[1688174621039,0.019721,30428.0,30423.0,1.244524]
[1688174621235,0.019721,30428.0,30427.0,0.380521]
[1688174621443,0.90227045,30428.0,30427.0,0.019721]
[1688174621832,0.920419,30428.0,30427.0,0.019721]
[1688174622038,0.90227045,30428.0,30427.0,0.019721]
[1688174622427,0.920419,30428.0,30427.0,0.019721]
[1688174623249,0.920419,30428.0,30427.0,0.03102377]
[1688174623928,0.05964897,30431.0,30427.0,0.39182377]
[1688174624132,0.05964897,30431.0,30430.0,0.3608]
[1688174624342,0.09664697,30431.0,30430.0,0.3608]
[1688174624539,0.07849842,30431.0,30430.0,0.01130079]
[1688174624745,0.07849842,30431.0,30430.0,0.39181979]
[1688174624931,0.05964897,30431.0,30430.0,0.38783403]
[1688174625240,0.05964897,30431.0,30430.0,0.02703403]
[1688174625637,0.09664697,30431.0,30430.0,0.02703403]
[1688174625946,0.09664697,30431.0,30427.0,0.380521]
[1688174626138,0.8656,30428.0,30427.0,0.019721]
[1688174626455,0.885321,30428.0,30424.0,0.41060097]
[1688174626745,0.883422,30425.0,30424.0,0.00049297]
[1688174626930,0.883422,30425.0,30424.0,0.02021597]
[1688174627129,0.883422,30425.0,30424.0,0.38101597]
[1688174627644,0.92042,30425.0,30424.0,0.38101597]
[1688174628633,0.92042,30425.0,30424.0,0.02021597]
[1688174630151,0.90227145,30425.0,30424.0,0.02021597]
[1688174630737,0.92042,30425.0,30424.0,0.02021597]
[1688174631645,0.92042,30425.0,30424.0,0.00049297]
[1688174632848,0.92042,30425.0,30424.0,0.00961905]
[1688174633051,0.92042,30425.0,30424.0,0.00049297]
[1688174633245,0.92042,30425.0,30424.0,0.0096185]
[1688174633749,0.92042,30425.0,30424.0,0.00049297]
[1688174634739,0.02474855,30424.0,30421.0,0.02020263]
[1688174634957,0.888024,30422.0,30421.0,0.02020263]
[1688174635137,0.888024,30422.0,30421.0,0.00047763]
[1688174635340,0.925022,30422.0,30421.0,0.00047763]
[1688174635942,0.925022,30422.0,30421.0,0.02020263]
[1688174636149,0.925022,30422.0,30421.0,0.019725]
[1688174636451,0.925022,30422.0,30418.0,0.02021906]
[1688174636633,0.888026,30419.0,30418.0,0.02021906]
[1688174637341,0.925024,30419.0,30418.0,0.02021906]
[1688174637541,0.90687545,30419.0,30418.0,0.02021906]
[1688174638141,0.925024,30419.0,30418.0,0.02021906]
[1688174638539,0.925024,30419.0,30418.0,0.0342886]
[1688174639345,0.925024,30419.0,30418.0,0.0145626]
[1688174639645,1.799864,30419.0,30413.0,0.35033]
[1688174639844,0.8612,30414.0,30413.0,0.06344608]
[1688174640145,0.03857945,30414.0,30413.0,0.01973]
[1688174640345,0.01884945,30414.0,30413.0,0.01973]
[1688174640947,0.049324,30415.0,30413.0,0.01973]
[1688174641152,0.06817345,30415.0,30413.0,0.01973]
[1688174641335,0.06817345,30415.0,30414.0,0.3608]
[1688174641537,0.00049319,30417.0,30414.0,1.24553]
[1688174641749,0.00049319,30417.0,30415.0,0.3608]
[1688174642043,0.019725,30422.0,30417.0,0.05]
[1688174642249,0.019723,30424.0,30422.0,0.019724]
[1688174642445,0.882623,30424.0,30422.0,0.019724]
[1688174642645,0.882623,30424.0,30421.0,0.3608]
[1688174642845,0.01884945,30423.0,30421.0,0.380525]
[1688174643051,0.019724,30422.0,30421.0,0.39937445]
[1688174643246,0.019724,30422.0,30421.0,0.019725]
[1688174643448,0.056722,30422.0,30421.0,0.019725]
[1688174643644,0.917922,30422.0,30419.0,0.06624806]
[1688174643840,0.8661,30420.0,30419.0,0.06624806]
[1688174644043,0.922824,30420.0,30419.0,0.00049306]
[1688174644442,0.922824,30420.0,30418.0,0.019726]
[1688174644760,0.397798,30419.0,30415.0,0.065764]
[1688174645050,0.019727,30418.0,30414.0,0.019729]
[1688174645251,0.05439551,30417.0,30414.0,0.019729]
[1688174645556,0.05439551,30417.0,30412.0,0.09145129]
[1688174645557,0.8629,30415.0,30412.0,0.09194446]
[1688174645753,0.8656,30413.0,30412.0,0.09194446]
[1688174645956,0.88533,30413.0,30412.0,0.09194446]
[1688174646143,0.922328,30413.0,30412.0,0.09194446]
[1688174647253,0.01973,30413.0,30412.0,0.10113879]
[1688174647557,0.8637,30414.0,30412.0,0.10113879]
[1688174647742,0.900698,30414.0,30412.0,0.10113879]
[1688174647942,0.88343,30414.0,30412.0,0.10113879]
[1688174648272,0.036998,30413.0,30412.0,0.10113879]
[1688174648556,0.919628,30413.0,30412.0,0.03536879]
[1688174648746,0.919628,30413.0,30412.0,0.05509979]
[1688174649358,0.919628,30413.0,30412.0,0.0294185]
[1688174651048,0.919628,30413.0,30412.0,0.3902185]
[1688174652244,0.90147945,30413.0,30412.0,0.3902185]
[1688174652946,0.88263,30413.0,30412.0,0.40906795]
[1688174653854,0.88263,30413.0,30412.0,0.3902185]
[1688174654052,0.90077855,30413.0,30412.0,0.3902185]
[1688174654453,0.919628,30413.0,30412.0,0.3902185]
[1688174654659,0.90147945,30413.0,30412.0,0.3902185]
[1688174655360,0.919628,30413.0,30412.0,0.3902185]
[1688174656167,0.90147945,30413.0,30412.0,0.3902185]
[1688174656762,0.919628,30413.0,30412.0,0.3902185]
[1688174657256,0.919628,30413.0,30412.0,0.0294185]
[1688174657951,0.90147945,30413.0,30412.0,0.0294185]
[1688174658663,0.919628,30413.0,30412.0,0.0294185]
[1688174659051,0.90147945,30413.0,30412.0,0.0294185]
[1688174659252,0.90147945,30413.0,30412.0,0.3902185]
[1688174659456,0.919628,30413.0,30412.0,0.3902185]
[1688174660362,0.88263,30413.0,30412.0,0.3902185]
[1688174660753,0.90147945,30413.0,30412.0,0.3902185]
[1688174661367,0.919628,30413.0,30412.0,0.3902185]
[1688174663165,0.049325,30415.0,30412.0,0.3902185]
[1688174663367,0.049325,30415.0,30412.0,0.43393458]
[1688174663666,0.049325,30415.0,30413.0,0.03707914]
[1688174663873,0.049325,30415.0,30414.0,0.01973]
[1688174664069,0.922886,30416.0,30414.0,0.04783457]
[1688174664070,0.94103455,30416.0,30414.0,0.04783457]
[1688174664257,0.94173545,30416.0,30415.0,0.3608]
[1688174664570,0.959884,30416.0,30415.0,0.38978367]
[1688174664770,0.8637,30416.0,30415.0,0.38978367]
[1688174664976,0.019728,30417.0,30415.0,0.38978367]
[1688174665460,0.019728,30417.0,30416.0,0.03857745]
[1688174665851,0.03857745,30417.0,30416.0,0.02891446]
[1688174666861,0.89977745,30417.0,30416.0,0.02891446]
[1688174667261,0.917926,30417.0,30416.0,0.02891446]
[1688174667767,0.924526,30417.0,30412.0,0.02022317]
[1688174667962,0.8636,30413.0,30412.0,0.02022317]
[1688174668166,0.88333,30413.0,30412.0,0.02022317]
[1688174668466,0.920328,30413.0,30412.0,0.02710414]
[1688174674366,0.01973,30413.0,30412.0,0.47166574]
[1688174674569,0.01973,30413.0,30412.0,0.45343605]
[1688174675162,0.88803,30413.0,30412.0,0.45343605]
[1688174675365,0.90687945,30413.0,30412.0,0.45343605]
[1688174676070,0.925028,30413.0,30412.0,0.45343605]
[1688174677370,0.8683,30413.0,30412.0,0.45343605]
[1688174677671,0.8683,30413.0,30412.0,0.48632317]
[1688174678175,0.8683,30413.0,30412.0,0.50517262]
[1688174679573,0.88644855,30413.0,30412.0,0.48632317]
[1688174679777,0.8683,30413.0,30412.0,0.48632317]
[1688174679969,0.32689317,30419.0,30412.0,0.736792]
[1688174680163,0.8637,30417.0,30416.0,0.42646234]
[1688174680381,0.8637,30417.0,30416.0,0.51286148]
[1688174680674,0.8637,30417.0,30416.0,0.51978217]
[1688174680880,0.8637,30417.0,30416.0,0.43589014]
[1688174681065,0.8637,30417.0,30416.0,0.41704069]
[1688174681973,0.8637,30417.0,30416.0,0.43589014]
[1688174682371,0.8637,30417.0,30416.0,0.45411983]
[1688174683576,0.8637,30417.0,30416.0,0.43589014]
[1688174683780,0.8637,30417.0,30416.0,0.41704069]
[1688174684166,0.883428,30417.0,30416.0,0.43589014]
[1688174684371,0.90227745,30417.0,30416.0,0.41704069]
[1688174684569,0.920426,30417.0,30416.0,0.41704069]
[1688174685786,0.920426,30417.0,30416.0,0.05624069]
[1688174685988,0.579626,30417.0,30416.0,0.05624069]
[1688174690468,0.579626,30417.0,30416.0,0.12190303]
[1688174690873,0.542628,30417.0,30416.0,0.14013272]
[1688174691076,0.05967617,30419.0,30416.0,0.14013272]
[1688174691077,0.00049317,30419.0,30416.0,0.48270303]
[1688174691277,0.00049317,30419.0,30418.0,0.06566234]
[1688174691483,0.00049317,30419.0,30418.0,0.1621799]
[1688174692773,0.52429317,30419.0,30418.0,0.06368706]
[1688174692979,0.52429317,30419.0,30418.0,0.42448706]
[1688174693184,0.52429317,30419.0,30418.0,0.5229799]
[1688174694185,0.52429317,30419.0,30418.0,0.8837799]
[1688174694378,0.5245,30421.0,30418.0,0.8837799]
[1688174694583,0.5245,30421.0,30419.0,0.10275361]
[1688174694770,0.5245,30421.0,30420.0,0.019726]
[1688174694977,0.5245,30421.0,30420.0,0.02660038]
[1688174695286,0.5259,30421.0,30420.0,0.06367952]
[1688174698581,0.5232,30423.0,30420.0,0.10680514]
[1688174698775,0.00049308,30424.0,30422.0,0.8872]
[1688174698972,0.00049308,30424.0,30423.0,0.380524]
[1688174699172,0.00049308,30424.0,30423.0,0.41760314]
[1688174702776,0.68733812,30429.0,30423.0,0.906924]
[1688174702989,0.68733812,30429.0,30428.0,0.3608]
[1688174703185,0.68733812,30429.0,30428.0,0.380521]
[1688174703379,0.5245,30429.0,30428.0,0.380521]
[1688174703581,0.5245,30429.0,30428.0,0.41760014]
[1688174704073,0.54422,30429.0,30428.0,0.41760014]
[1688174704687,0.54422,30429.0,30428.0,0.39937045]
[1688174705489,0.54422,30429.0,30428.0,0.41760014]
[1688174705886,0.54422,30429.0,30428.0,0.39937045]
[1688174706094,0.54422,30429.0,30428.0,0.41760014]
[1688174706293,0.54422,30429.0,30428.0,0.39937045]
[1688174706478,0.04979095,30432.0,30428.0,1.30130014]
[1688174706479,0.57619095,30432.0,30428.0,1.30130014]
[1688174706677,0.52689295,30432.0,30431.0,0.380519]
[1688174707092,0.54661095,30432.0,30431.0,0.39874869]
[1688174707374,0.54661095,30432.0,30431.0,0.41759814]
[1688174707585,0.52689295,30432.0,30431.0,0.41759814]
[1688174710889,0.52689295,30432.0,30431.0,0.39936845]
[1688174711092,0.54661095,30432.0,30431.0,0.380519]
[1688174711686,0.54661095,30432.0,30431.0,0.39874869]
[1688174712187,0.54661095,30432.0,30431.0,0.39936845]
[1688174712584,0.58360895,30432.0,30431.0,0.380519]
[1688174712991,0.5654604,30432.0,30431.0,0.380519]
[1688174713186,0.54661095,30432.0,30431.0,0.380519]
[1688174713486,0.5507155,30432.0,30431.0,0.39936845]
[1688174713692,0.5507155,30432.0,30431.0,0.41759814]
[1688174714188,0.5507155,30432.0,30431.0,0.39936845]
[1688174714892,0.5507155,30432.0,30431.0,0.41759814]
[1688174715191,0.5309975,30432.0,30431.0,0.41759814]
[1688174715689,0.0045975,30432.0,30431.0,0.41759814]
[1688174715882,0.00018247,30436.0,30432.0,0.03707914]
[1688174716083,0.00018247,30436.0,30435.0,0.8837]
[1688174716278,0.00018247,30436.0,30435.0,0.903416]
[1688174716484,0.00018247,30436.0,30435.0,0.94049514]
[1688174716983,0.00018247,30436.0,30435.0,1.25069514]
[1688174718293,0.54629747,30436.0,30435.0,0.70956545]
[1688174718694,0.54629747,30436.0,30435.0,0.72779514]
[1688174719089,0.54629747,30436.0,30435.0,0.70956545]
[1688174719388,0.52658247,30436.0,30435.0,0.70956545]
[1688174719991,0.52658247,30436.0,30435.0,0.72779514]
[1688174720193,0.52658247,30436.0,30435.0,1.25419514]
[1688174720194,0.00018247,30436.0,30435.0,1.25419514]
[1688174723597,0.00529016,30436.0,30435.0,1.25419514]
[1688174724601,0.00049284,30439.0,30436.0,0.05]
[1688174724899,0.00049284,30439.0,30438.0,0.380514]
[1688174725290,0.00049284,30439.0,30438.0,0.94389314]
[1688174732105,0.00088711,30439.0,30438.0,0.94389314]
[1688174732300,0.00901479,30439.0,30438.0,0.94389314]
[1688174732605,0.00818371,30439.0,30438.0,0.94389314]
[1688174732804,0.3053,30444.0,30440.0,0.05]
[1688174732997,0.3053,30444.0,30443.0,0.3608]
[1688174733198,0.55098725,30446.0,30443.0,0.380511]
[1688174733398,0.71382537,30446.0,30443.0,0.380511]
[1688174733600,0.16283812,30445.0,30444.0,0.03707914]
[1688174733808,0.5245,30446.0,30444.0,0.049275]
[1688174733809,0.68733812,30446.0,30444.0,0.049275]
[1688174734003,0.00037221,30445.0,30444.0,0.049275]
[1688174734198,0.00037221,30445.0,30444.0,0.06812445]
[1688174734593,0.00037221,30445.0,30444.0,0.60825414]
[1688174736004,0.16283812,30447.0,30444.0,0.60825414]
[1688174736299,0.019709,30446.0,30445.0,0.05678914]
[1688174736806,0.019709,30446.0,30445.0,0.01971]
[1688174737112,0.545609,30446.0,30445.0,0.01971]
[1688174738011,0.56375755,30446.0,30445.0,0.01971]
[1688174738204,0.545609,30446.0,30445.0,0.01971]
[1688174738404,0.68823323,30446.0,30445.0,0.03793969]
[1688174738709,0.16233323,30446.0,30445.0,0.05678914]
[1688174738920,0.162396,30446.0,30445.0,0.05678914]
[1688174739400,0.162396,30447.0,30445.0,0.05678914]
[1688174739598,0.162396,30447.0,30446.0,0.03707914]
[1688174739804,0.162396,30447.0,30446.0,0.05678814]
[1688174740110,0.17120137,30447.0,30446.0,0.05678814]
[1688174740305,0.00880537,30447.0,30446.0,0.57868814]
[1688174740906,0.00880537,30447.0,30446.0,0.93948814]
[1688174741109,0.00918041,30447.0,30446.0,0.93948814]
[1688174741822,0.00918041,30447.0,30446.0,0.92125845]
[1688174742015,0.02888841,30447.0,30446.0,0.39935845]
[1688174742805,0.04773786,30447.0,30446.0,0.380509]
[1688174743513,0.06588641,30447.0,30446.0,0.380509]
[1688174743911,0.04773786,30447.0,30446.0,0.380509]
[1688174744111,0.02888841,30447.0,30446.0,0.380509]
[1688174744919,0.04773786,30447.0,30446.0,0.380509]
[1688174745109,0.57413786,30447.0,30446.0,0.380509]
[1688174745418,0.59228641,30447.0,30446.0,0.380509]
[1688174746920,0.75468241,30447.0,30446.0,0.019709]
[1688174748717,0.0066,30446.0,30443.0,0.08527541]
[1688174748913,0.0066,30446.0,30442.0,0.019711]